[Event "*** Qualifier 1: Titled Tuesday 3|2 Blitz"]
[Site "Chess.com"]
[Date "2017.04.04"]
[Round "4"]
[White "Bad4life"]
[Black "armago"]
[Result "0-1"]
[WhiteElo "2252"]
[BlackElo "2200"]
[TimeControl "180+2"]
[EndTime "13:54:37 PDT"]
[Termination "armago won by checkmate"]

1. e4 {[%clk 0:03:02]} 1... c5 {[%clk 0:03:00]} 2. Nf3 {[%clk 0:03:03.2]} 2...
Nc6 {[%clk 0:03:00.6]} 3. Bb5 {[%clk 0:03:03.6]} 3... g6 {[%clk 0:03:00.3]} 4.
Bxc6 {[%clk 0:03:04]} 4... dxc6 {[%clk 0:03:02.2]} 5. d3 {[%clk 0:03:03.8]} 5...
Bg7 {[%clk 0:03:02.9]} 6. h3 {[%clk 0:03:04.9]} 6... Nf6 {[%clk 0:03:03]} 7. Nc3
{[%clk 0:03:05.9]} 7... Nd7 {[%clk 0:03:02.7]} 8. Be3 {[%clk 0:03:06.3]} 8... e5
{[%clk 0:03:03.3]} 9. Qd2 {[%clk 0:03:07.3]} 9... h6 {[%clk 0:03:04.5]} 10. a4
{[%clk 0:02:57.5]} 10... a5 {[%clk 0:02:53.9]} 11. Qe2 {[%clk 0:02:54.1]} 11...
Qe7 {[%clk 0:02:50.3]} 12. Nd2 {[%clk 0:02:54.3]} 12... O-O {[%clk 0:02:47.9]}
13. Nc4 {[%clk 0:02:50.4]} 13... f5 {[%clk 0:02:45.1]} 14. exf5 {[%clk
0:02:42.6]} 14... gxf5 {[%clk 0:02:43.8]} 15. O-O-O {[%clk 0:02:38.3]} 15... b6
{[%clk 0:02:21]} 16. f4 {[%clk 0:02:38.3]} 16... Ba6 {[%clk 0:02:14.9]} 17. fxe5
{[%clk 0:02:35.8]} 17... Bxc4 {[%clk 0:02:13.2]} 18. dxc4 {[%clk 0:02:35.8]}
18... Nxe5 {[%clk 0:02:12.6]} 19. Bf4 {[%clk 0:02:26.7]} 19... Rae8 {[%clk
0:02:12.1]} 20. Kb1 {[%clk 0:02:25.5]} 20... Qf7 {[%clk 0:02:07.5]} 21. Bxe5
{[%clk 0:02:09.3]} 21... Bxe5 {[%clk 0:02:03.5]} 22. Qd3 {[%clk 0:02:01.2]}
22... Bd4 {[%clk 0:01:57.9]} 23. Rhf1 {[%clk 0:01:59.2]} 23... Re3 {[%clk
0:01:55.9]} 24. Qd2 {[%clk 0:01:54.6]} 24... Qxc4 {[%clk 0:01:55.1]} 25. Rf4
{[%clk 0:01:48.5]} 25... Qe6 {[%clk 0:01:41]} 26. Rxd4 {[%clk 0:01:36.3]} 26...
cxd4 {[%clk 0:01:40.1]} 27. Qxd4 {[%clk 0:01:37.7]} 27... Re1 {[%clk 0:01:36.4]}
28. Rxe1 {[%clk 0:01:32.5]} 28... Qxe1+ {[%clk 0:01:35.9]} 29. Ka2 {[%clk
0:01:33.9]} 29... Qe6+ {[%clk 0:01:36.4]} 30. b3 {[%clk 0:01:30.8]} 30... Qf6
{[%clk 0:01:30.2]} 31. Qc4+ {[%clk 0:01:29.8]} 31... Kh8 {[%clk 0:01:30.7]} 32.
Ne2 {[%clk 0:01:24.6]} 32... Re8 {[%clk 0:01:25.4]} 33. Qd3 {[%clk 0:01:03.8]}
33... Qe5 {[%clk 0:01:21]} 34. Qd2 {[%clk 0:00:56.4]} 34... Qe3 {[%clk
0:01:12.4]} 35. Qd6 {[%clk 0:00:51.9]} 35... Qe6 {[%clk 0:01:02.3]} 36. Qf4
{[%clk 0:00:47.6]} 36... Kh7 {[%clk 0:01:00.1]} 37. Ng3 {[%clk 0:00:35.7]} 37...
Qe5 {[%clk 0:00:57.5]} 38. Qf3 {[%clk 0:00:34.8]} 38... f4 {[%clk 0:00:57.2]}
39. Nh5 {[%clk 0:00:30.2]} 39... Rf8 {[%clk 0:00:45.1]} 40. Qxc6 {[%clk
0:00:27.4]} 40... Qxh5 {[%clk 0:00:42.9]} 41. Qb7+ {[%clk 0:00:25.3]} 41... Qf7
{[%clk 0:00:42]} 42. Qxb6 {[%clk 0:00:25]} 42... Qf5 {[%clk 0:00:43.2]} 43. Qc7+
{[%clk 0:00:23.6]} 43... Rf7 {[%clk 0:00:43.8]} 44. Qc3 {[%clk 0:00:23.9]} 44...
f3 {[%clk 0:00:44.4]} 45. gxf3 {[%clk 0:00:24.2]} 45... Qxf3 {[%clk 0:00:46.3]}
46. Qxa5 {[%clk 0:00:19.2]} 46... Qf5 {[%clk 0:00:44.8]} 47. Qc3 {[%clk
0:00:20.1]} 47... Qg6 {[%clk 0:00:42.3]} 48. a5 {[%clk 0:00:21.2]} 48... Rf2
{[%clk 0:00:42.5]} 49. Kb2 {[%clk 0:00:21.8]} 49... Qf6 {[%clk 0:00:42.5]} 50.
b4 {[%clk 0:00:20.1]} 50... Kg7 {[%clk 0:00:39.8]} 51. b5 {[%clk 0:00:19.6]}
51... Rf5 {[%clk 0:00:38.9]} 52. Qxf6+ {[%clk 0:00:19.6]} 52... Kxf6 {[%clk
0:00:39.4]} 53. c4 {[%clk 0:00:19.8]} 53... Ke7 {[%clk 0:00:40]} 54. Kb3 {[%clk
0:00:21]} 54... Kd7 {[%clk 0:00:40.7]} 55. Kb4 {[%clk 0:00:22.8]} 55... Kc7
{[%clk 0:00:41]} 56. b6+ {[%clk 0:00:22.3]} 56... Kc6 {[%clk 0:00:41.7]} 57. Kc3
{[%clk 0:00:19.7]} 57... Rxa5 {[%clk 0:00:39]} 58. Kd4 {[%clk 0:00:18.7]} 58...
Kxb6 {[%clk 0:00:39.2]} 59. Ke4 {[%clk 0:00:19.9]} 59... Rh5 {[%clk 0:00:39.6]}
60. Kd4 {[%clk 0:00:19.2]} 60... Rxh3 {[%clk 0:00:39.4]} 61. c5+ {[%clk
0:00:20.7]} 61... Kc6 {[%clk 0:00:41.3]} 62. Kc4 {[%clk 0:00:21.8]} 62... Rh5
{[%clk 0:00:42.7]} 63. Kd4 {[%clk 0:00:23.7]} 63... Rxc5 {[%clk 0:00:44.6]} 64.
Ke4 {[%clk 0:00:25.6]} 64... h5 {[%clk 0:00:45.9]} 65. Kf4 {[%clk 0:00:27.5]}
65... h4 {[%clk 0:00:46.8]} 66. Kg4 {[%clk 0:00:28.9]} 66... Rc4+ {[%clk
0:00:48]} 67. Kh3 {[%clk 0:00:30]} 67... Kd6 {[%clk 0:00:49.9]} 68. Kg2 {[%clk
0:00:31.9]} 68... Ke5 {[%clk 0:00:51.8]} 69. Kh3 {[%clk 0:00:33.2]} 69... Kf5
{[%clk 0:00:53.7]} 70. Kg2 {[%clk 0:00:35.1]} 70... Kg5 {[%clk 0:00:55.5]} 71.
Kh3 {[%clk 0:00:37]} 71... Kh5 {[%clk 0:00:56.6]} 72. Kg2 {[%clk 0:00:38.9]}
72... Kg4 {[%clk 0:00:58.5]} 73. Kh2 {[%clk 0:00:40.5]} 73... Re4 {[%clk
0:00:59.8]} 74. Kg2 {[%clk 0:00:42.4]} 74... Re2+ {[%clk 0:01:00.8]} 75. Kf1
{[%clk 0:00:44.3]} 75... Kf3 {[%clk 0:01:02]} 76. Kg1 {[%clk 0:00:45.6]} 76...
h3 {[%clk 0:01:01.9]} 77. Kf1 {[%clk 0:00:47]} 77... Ra2 {[%clk 0:01:02.3]} 78.
Ke1 {[%clk 0:00:47.6]} 78... Ra4 {[%clk 0:01:01.7]} 79. Kf1 {[%clk 0:00:48.9]}
79... h2 {[%clk 0:01:03.6]} 80. Ke1 {[%clk 0:00:50]} 80... Rd4 {[%clk
0:01:04.2]} 81. Kf1 {[%clk 0:00:51]} 81... Rd1# {[%clk 0:01:05.1]} 0-1

[Event "*** Qualifier 1: Titled Tuesday 3|2 Blitz"]
[Site "Chess.com"]
[Date "2017.04.04"]
[Round "4"]
[White "Usurpov"]
[Black "stepanosinovsky"]
[Result "1-0"]
[WhiteElo "2267"]
[BlackElo "2156"]
[TimeControl "180+2"]
[EndTime "13:54:56 PDT"]
[Termination "Usurpov won on time"]

1. e4 {[%clk 0:03:02]} 1... e5 {[%clk 0:02:57.2]} 2. Nf3 {[%clk 0:02:59.9]} 2...
Nc6 {[%clk 0:02:56.8]} 3. Nc3 {[%clk 0:03:01.1]} 3... Nf6 {[%clk 0:02:56.8]} 4.
d4 {[%clk 0:03:01]} 4... d6 {[%clk 0:02:56]} 5. Bb5 {[%clk 0:02:58.9]} 5... Bd7
{[%clk 0:02:43]} 6. O-O {[%clk 0:02:57]} 6... Be7 {[%clk 0:02:41.4]} 7. Re1
{[%clk 0:02:17.2]} 7... exd4 {[%clk 0:02:40.7]} 8. Nxd4 {[%clk 0:02:18.7]} 8...
O-O {[%clk 0:02:41.7]} 9. Bg5 {[%clk 0:02:15.4]} 9... a6 {[%clk 0:02:11.7]} 10.
Bxc6 {[%clk 0:02:09.5]} 10... bxc6 {[%clk 0:02:12.6]} 11. Qd3 {[%clk 0:01:57.5]}
11... Ng4 {[%clk 0:01:48.5]} 12. Bxe7 {[%clk 0:01:46.2]} 12... Qxe7 {[%clk
0:01:50.4]} 13. Rad1 {[%clk 0:01:39.7]} 13... Qh4 {[%clk 0:01:43.9]} 14. Qg3
{[%clk 0:01:36.7]} 14... Qxg3 {[%clk 0:01:44.7]} 15. hxg3 {[%clk 0:01:38.6]}
15... Rab8 {[%clk 0:01:44.8]} 16. b3 {[%clk 0:01:27.1]} 16... Rfe8 {[%clk
0:01:39.6]} 17. f3 {[%clk 0:01:23.9]} 17... Ne5 {[%clk 0:01:39.3]} 18. g4 {[%clk
0:01:21]} 18... f6 {[%clk 0:01:30.6]} 19. Kf2 {[%clk 0:01:20.2]} 19... a5 {[%clk
0:01:30.3]} 20. Nf5 {[%clk 0:01:10.9]} 20... g6 {[%clk 0:01:10]} 21. Ne3 {[%clk
0:01:01.5]} 21... h6 {[%clk 0:01:04]} 22. Kg3 {[%clk 0:00:59.8]} 22... Kg7
{[%clk 0:00:55.8]} 23. f4 {[%clk 0:00:55.8]} 23... Nf7 {[%clk 0:00:56.7]} 24.
Kf3 {[%clk 0:00:55.2]} 24... Re7 {[%clk 0:00:57]} 25. Nc4 {[%clk 0:00:42.9]}
25... Ra8 {[%clk 0:00:56.6]} 26. Re3 {[%clk 0:00:36.3]} 26... Be6 {[%clk
0:00:55.5]} 27. Nb2 {[%clk 0:00:32.4]} 27... Rae8 {[%clk 0:00:52.2]} 28. Rde1
{[%clk 0:00:28.5]} 28... Ra8 {[%clk 0:00:47.8]} 29. Nd3 {[%clk 0:00:27.9]} 29...
Bd7 {[%clk 0:00:42.3]} 30. Rd1 {[%clk 0:00:22.3]} 30... Rae8 {[%clk 0:00:41.2]}
31. Rde1 {[%clk 0:00:21]} 31... Ra8 {[%clk 0:00:41.1]} 32. g3 {[%clk 0:00:22.3]}
32... Rae8 {[%clk 0:00:40.6]} 33. Nb2 {[%clk 0:00:23.1]} 33... Be6 {[%clk
0:00:38.6]} 34. Rd1 {[%clk 0:00:23.4]} 34... Ra8 {[%clk 0:00:36.9]} 35. Nd3
{[%clk 0:00:21.5]} 35... Rae8 {[%clk 0:00:33.5]} 36. Ne2 {[%clk 0:00:22.4]}
36... a4 {[%clk 0:00:30.7]} 37. Nd4 {[%clk 0:00:21.5]} 37... Bd7 {[%clk
0:00:24.2]} 38. Rde1 {[%clk 0:00:19.1]} 38... axb3 {[%clk 0:00:18.2]} 39. axb3
{[%clk 0:00:21]} 39... c5 {[%clk 0:00:19.4]} 40. Ne2 {[%clk 0:00:22]} 40... Bc6
{[%clk 0:00:20.3]} 41. Nc3 {[%clk 0:00:23]} 41... Re6 {[%clk 0:00:20.9]} 42. Nb2
{[%clk 0:00:23.6]} 42... f5 {[%clk 0:00:20.7]} 43. gxf5 {[%clk 0:00:24]} 43...
gxf5 {[%clk 0:00:21.6]} 44. g4 {[%clk 0:00:19.2]} 44... fxe4+ {[%clk 0:00:20.5]}
45. Kg3 {[%clk 0:00:20.4]} 45... d5 {[%clk 0:00:21]} 46. f5 {[%clk 0:00:21.2]}
46... Re5 {[%clk 0:00:21.5]} 47. R3e2 {[%clk 0:00:19.6]} 47... d4 {[%clk
0:00:21.2]} 48. Nca4 {[%clk 0:00:20.3]} 48... Nd6 {[%clk 0:00:19.8]} 49. Kf4
{[%clk 0:00:20.4]} 49... e3 {[%clk 0:00:19.5]} 50. Nd3 {[%clk 0:00:18.9]} 50...
Re4+ {[%clk 0:00:20.6]} 51. Kg3 {[%clk 0:00:20.6]} 51... c4 {[%clk 0:00:21.6]}
52. Nf4 {[%clk 0:00:21]} 52... cxb3 {[%clk 0:00:21]} 53. cxb3 {[%clk 0:00:21.9]}
53... d3 {[%clk 0:00:20.8]} 54. Nxd3 {[%clk 0:00:22.4]} 54... R8e5 {[%clk
0:00:20.5]} 55. Nxe5 {[%clk 0:00:22.9]} 55... Rxe5 {[%clk 0:00:21.4]} 56. Rxe3
{[%clk 0:00:23]} 56... Rb5 {[%clk 0:00:19.1]} 57. Re7+ {[%clk 0:00:22.9]} 57...
Kf8 {[%clk 0:00:18.2]} 58. R1e3 {[%clk 0:00:22.3]} 58... Ne8 {[%clk 0:00:08.1]}
59. Nb2 {[%clk 0:00:21.3]} 59... Bd5 {[%clk 0:00:08.5]} 60. Nc4 {[%clk
0:00:21.7]} 60... Rb4 {[%clk 0:00:09]} 61. Rxe8+ {[%clk 0:00:20.3]} 61... Kf7
{[%clk 0:00:09.4]} 62. R8e7+ {[%clk 0:00:19.1]} 62... Kf6 {[%clk 0:00:09.9]} 63.
Rxc7 {[%clk 0:00:20.5]} 63... h5 {[%clk 0:00:07.3]} 64. Rd7 {[%clk 0:00:13.6]}
1-0

[Event "*** Qualifier 1: Titled Tuesday 3|2 Blitz"]
[Site "Chess.com"]
[Date "2017.04.04"]
[Round "4"]
[White "ShimanovAlex"]
[Black "A-Fier"]
[Result "1-0"]
[WhiteElo "2623"]
[BlackElo "2483"]
[TimeControl "180+2"]
[EndTime "13:55:14 PDT"]
[Termination "ShimanovAlex won by checkmate"]

1. d4 {[%clk 0:03:01.9]} 1... Nf6 {[%clk 0:03:00.9]} 2. Bf4 {[%clk 0:03:02.7]}
2... c5 {[%clk 0:03:00.5]} 3. d5 {[%clk 0:02:56.7]} 3... Qb6 {[%clk 0:02:57.7]}
4. Nc3 {[%clk 0:02:57.7]} 4... Qxb2 {[%clk 0:02:51.7]} 5. Bd2 {[%clk 0:02:58.3]}
5... Qb6 {[%clk 0:02:51.9]} 6. e4 {[%clk 0:02:58.9]} 6... e6 {[%clk 0:02:52.7]}
7. Bc4 {[%clk 0:02:49.5]} 7... d6 {[%clk 0:02:47.5]} 8. Nf3 {[%clk 0:02:47.3]}
8... e5 {[%clk 0:02:47]} 9. O-O {[%clk 0:02:38]} 9... g6 {[%clk 0:02:45.5]} 10.
a4 {[%clk 0:02:29.7]} 10... Bg7 {[%clk 0:02:45.9]} 11. Ne1 {[%clk 0:02:24.4]}
11... O-O {[%clk 0:02:45.6]} 12. Nd3 {[%clk 0:02:24.8]} 12... Nbd7 {[%clk
0:02:38.2]} 13. Nb5 {[%clk 0:02:16.8]} 13... Ne8 {[%clk 0:02:38.3]} 14. Bg5
{[%clk 0:02:13.6]} 14... Bf6 {[%clk 0:02:34.9]} 15. Bh6 {[%clk 0:02:08.8]} 15...
Bg7 {[%clk 0:02:35.9]} 16. Bg5 {[%clk 0:02:09.8]} 16... f6 {[%clk 0:02:36.6]}
17. Bh4 {[%clk 0:02:05.9]} 17... Qd8 {[%clk 0:02:36.3]} 18. a5 {[%clk
0:01:55.1]} 18... a6 {[%clk 0:02:36.5]} 19. Nc3 {[%clk 0:01:55.9]} 19... g5
{[%clk 0:02:19.3]} 20. Bg3 {[%clk 0:01:55.2]} 20... f5 {[%clk 0:02:20.7]} 21.
exf5 {[%clk 0:01:52.2]} 21... Ndf6 {[%clk 0:02:21.8]} 22. f3 {[%clk 0:01:43.1]}
22... Bxf5 {[%clk 0:02:22.4]} 23. Nf2 {[%clk 0:01:44.1]} 23... Kh8 {[%clk
0:02:18.3]} 24. Re1 {[%clk 0:01:38.4]} 24... Qd7 {[%clk 0:02:14.9]} 25. Na4
{[%clk 0:01:38.3]} 25... Rd8 {[%clk 0:02:15.1]} 26. Nb6 {[%clk 0:01:39.5]} 26...
Qf7 {[%clk 0:02:15.7]} 27. Bd3 {[%clk 0:01:39.9]} 27... Qg6 {[%clk 0:01:43]} 28.
Bxf5 {[%clk 0:01:34.8]} 28... Qxf5 {[%clk 0:01:44.9]} 29. Qd3 {[%clk 0:01:35.6]}
29... Qxd3 {[%clk 0:01:39.9]} 30. Nxd3 {[%clk 0:01:36.5]} 30... g4 {[%clk
0:01:41.2]} 31. f4 {[%clk 0:01:31.6]} 31... e4 {[%clk 0:01:16.5]} 32. Nf2 {[%clk
0:01:31.3]} 32... Nd7 {[%clk 0:01:17.4]} 33. Rab1 {[%clk 0:01:21.8]} 33... Nef6
{[%clk 0:01:18.3]} 34. c4 {[%clk 0:01:20.3]} 34... Rfe8 {[%clk 0:01:15.6]} 35.
Nd1 {[%clk 0:01:10.9]} 35... Nh5 {[%clk 0:01:03.6]} 36. Bh4 {[%clk 0:01:10.9]}
36... Bd4+ {[%clk 0:01:04.6]} 37. Kh1 {[%clk 0:01:10.3]} 37... Ndf6 {[%clk
0:01:05]} 38. Ne3 {[%clk 0:01:00.2]} 38... Nxf4 {[%clk 0:01:01.7]} 39. Nf5
{[%clk 0:00:56.7]} 39... Be5 {[%clk 0:00:50.8]} 40. Rf1 {[%clk 0:00:54]} 40...
Rf8 {[%clk 0:00:39.5]} 41. Rbe1 {[%clk 0:00:36.8]} 41... Nd3 {[%clk 0:00:38.8]}
42. Rb1 {[%clk 0:00:28.3]} 42... Rde8 {[%clk 0:00:39.5]} 43. Bg5 {[%clk
0:00:20.7]} 43... Bd4 {[%clk 0:00:31.2]} 44. Nxd6 {[%clk 0:00:20.4]} 44... Rd8
{[%clk 0:00:14.8]} 45. Bxf6+ {[%clk 0:00:19.8]} 45... Bxf6 {[%clk 0:00:14.1]}
46. Nxe4 {[%clk 0:00:20.7]} 46... Bd4 {[%clk 0:00:13.9]} 47. Rxf8+ {[%clk
0:00:17.2]} 47... Rxf8 {[%clk 0:00:14.9]} 48. d6 {[%clk 0:00:18.9]} 48... Ne5
{[%clk 0:00:13.8]} 49. g3 {[%clk 0:00:18.3]} 49... Rd8 {[%clk 0:00:10.9]} 50.
Rf1 {[%clk 0:00:18.5]} 50... Kg7 {[%clk 0:00:11.7]} 51. Rf5 {[%clk 0:00:16]}
51... Nf7 {[%clk 0:00:08.3]} 52. Rd5 {[%clk 0:00:17.1]} 52... Be3 {[%clk
0:00:07]} 53. d7 {[%clk 0:00:17.5]} 53... h6 {[%clk 0:00:07.1]} 54. Nxc5 {[%clk
0:00:17]} 54... Bxc5 {[%clk 0:00:08.2]} 55. Rxc5 {[%clk 0:00:18.9]} 55... Kf6
{[%clk 0:00:08.9]} 56. Rc8 {[%clk 0:00:17.6]} 56... Ke6 {[%clk 0:00:09.5]} 57.
c5 {[%clk 0:00:18.1]} 57... Ke5 {[%clk 0:00:09.9]} 58. Kg2 {[%clk 0:00:14.7]}
58... Kd4 {[%clk 0:00:10.7]} 59. Kf2 {[%clk 0:00:15.9]} 59... Kc3 {[%clk
0:00:11.4]} 60. Ke3 {[%clk 0:00:16.8]} 60... Kb4 {[%clk 0:00:12.6]} 61. Kd4
{[%clk 0:00:18.2]} 61... Kxa5 {[%clk 0:00:13.8]} 62. Kd5 {[%clk 0:00:19.6]}
62... Kb5 {[%clk 0:00:12.7]} 63. Ke6 {[%clk 0:00:20.7]} 63... Ng5+ {[%clk
0:00:08.6]} 64. Ke7 {[%clk 0:00:21.6]} 64... Rxd7+ {[%clk 0:00:10]} 65. Kxd7
{[%clk 0:00:20.2]} 65... Ne4 {[%clk 0:00:09.8]} 66. Nd5 {[%clk 0:00:10.7]} 66...
Nxc5+ {[%clk 0:00:10.9]} 67. Kd6 {[%clk 0:00:12]} 67... Ne4+ {[%clk 0:00:10.6]}
68. Ke5 {[%clk 0:00:13.4]} 68... Nd2 {[%clk 0:00:11.7]} 69. Nc3+ {[%clk
0:00:12.8]} 69... Kb4 {[%clk 0:00:12]} 70. Ne4 {[%clk 0:00:14]} 70... Nf3+
{[%clk 0:00:12.6]} 71. Kd5 {[%clk 0:00:15.2]} 71... Nxh2 {[%clk 0:00:12.2]} 72.
Nc5 {[%clk 0:00:16.4]} 72... a5 {[%clk 0:00:10.8]} 73. Nxb7 {[%clk 0:00:16.6]}
73... a4 {[%clk 0:00:12.2]} 74. Rc4+ {[%clk 0:00:17.7]} 74... Kb5 {[%clk
0:00:08.6]} 75. Nd6+ {[%clk 0:00:18.5]} 75... Ka5 {[%clk 0:00:09.9]} 76. Kc6
{[%clk 0:00:19.3]} 76... Nf3 {[%clk 0:00:07.4]} 77. Nb7+ {[%clk 0:00:20]} 77...
Ka6 {[%clk 0:00:09]} 78. Rxa4# {[%clk 0:00:21.3]} 1-0

[Event "*** Qualifier 1: Titled Tuesday 3|2 Blitz"]
[Site "Chess.com"]
[Date "2017.04.04"]
[Round "4"]
[White "kharov2001"]
[Black "Aragon"]
[Result "1-0"]
[WhiteElo "1831"]
[BlackElo "2013"]
[TimeControl "180+2"]
[EndTime "13:55:29 PDT"]
[Termination "kharov2001 won by resignation"]

1. e4 {[%clk 0:03:02]} 1... Nc6 {[%clk 0:02:59.4]} 2. Nf3 {[%clk 0:02:58.7]}
2... f5 {[%clk 0:02:59.6]} 3. e5 {[%clk 0:02:55.8]} 3... d6 {[%clk 0:03:00.4]}
4. d4 {[%clk 0:02:54.9]} 4... dxe5 {[%clk 0:03:00.8]} 5. Bb5 {[%clk 0:02:52.4]}
5... e4 {[%clk 0:02:43.9]} 6. Bxc6+ {[%clk 0:02:52.4]} 6... bxc6 {[%clk
0:02:44.4]} 7. Ne5 {[%clk 0:02:52.9]} 7... Qd6 {[%clk 0:02:44.4]} 8. O-O {[%clk
0:02:35.2]} 8... c5 {[%clk 0:02:30.2]} 9. Be3 {[%clk 0:02:34.6]} 9... cxd4
{[%clk 0:02:25.4]} 10. Bxd4 {[%clk 0:02:35.3]} 10... Nf6 {[%clk 0:02:12.8]} 11.
Na3 {[%clk 0:02:14]} 11... Be6 {[%clk 0:01:57.1]} 12. Nac4 {[%clk 0:02:07.7]}
12... Qa6 {[%clk 0:01:46.7]} 13. Qe2 {[%clk 0:01:46.6]} 13... Rd8 {[%clk
0:01:34.9]} 14. Rfd1 {[%clk 0:01:17.2]} 14... g6 {[%clk 0:01:28.5]} 15. f3
{[%clk 0:01:12.3]} 15... Bg7 {[%clk 0:01:20]} 16. fxe4 {[%clk 0:01:07.7]} 16...
Nxe4 {[%clk 0:01:18.3]} 17. Nxg6 {[%clk 0:00:34.9]} 17... hxg6 {[%clk
0:00:37.4]} 18. Bxg7 {[%clk 0:00:33.7]} 18... Bxc4 {[%clk 0:00:35]} 19. Rxd8+
{[%clk 0:00:30.7]} 19... Kxd8 {[%clk 0:00:35.9]} 20. Qd1+ {[%clk 0:00:31.1]}
20... Kc8 {[%clk 0:00:36.1]} 21. Bxh8 {[%clk 0:00:31.6]} 21... Qb6+ {[%clk
0:00:37.1]} 22. Qd4 {[%clk 0:00:29.7]} 22... Qxd4+ {[%clk 0:00:35.7]} 23. Bxd4
{[%clk 0:00:28.8]} 23... c5 {[%clk 0:00:37]} 24. Be3 {[%clk 0:00:28.8]} 24... e5
{[%clk 0:00:36.5]} 25. Rd1 {[%clk 0:00:28.7]} 25... Kc7 {[%clk 0:00:37]} 26. b3
{[%clk 0:00:28.9]} 26... Be6 {[%clk 0:00:37.1]} 27. c4 {[%clk 0:00:29.7]} 27...
f4 {[%clk 0:00:35.5]} 28. Bd2 {[%clk 0:00:28.5]} 28... Kc6 {[%clk 0:00:37]} 29.
Bc1 {[%clk 0:00:25.2]} 29... Bg4 {[%clk 0:00:21.6]} 30. Rd8 {[%clk 0:00:23.1]}
30... Nc3 {[%clk 0:00:20.7]} 31. Bb2 {[%clk 0:00:19.6]} 31... Ne2+ {[%clk
0:00:20.3]} 32. Kf2 {[%clk 0:00:19.9]} 32... e4 {[%clk 0:00:22.2]} 33. Rf8
{[%clk 0:00:17.5]} 33... e3+ {[%clk 0:00:22.6]} 34. Ke1 {[%clk 0:00:16.9]} 34...
g5 {[%clk 0:00:23]} 35. Bf6 {[%clk 0:00:16.1]} 35... Nd4 {[%clk 0:00:21.6]} 36.
Bxg5 {[%clk 0:00:16]} 36... f3 {[%clk 0:00:23.2]} 37. gxf3 {[%clk 0:00:16.2]}
37... Nxf3+ {[%clk 0:00:23.7]} 38. Ke2 {[%clk 0:00:15.5]} 38... Nxg5+ {[%clk
0:00:25.6]} 39. Kxe3 {[%clk 0:00:16.8]} 39... Ne6 {[%clk 0:00:26.4]} 40. Rg8
{[%clk 0:00:15]} 40... Bf5 {[%clk 0:00:26.3]} 41. h4 {[%clk 0:00:15.3]} 41...
Bb1 {[%clk 0:00:27.4]} 42. h5 {[%clk 0:00:13.1]} 42... Bxa2 {[%clk 0:00:28.3]}
43. h6 {[%clk 0:00:13.2]} 43... Bxb3 {[%clk 0:00:27.3]} 44. h7 {[%clk
0:00:13.9]} 44... Bxc4 {[%clk 0:00:29.2]} 45. h8=Q {[%clk 0:00:14.8]} 45... Nd4
{[%clk 0:00:31.1]} 46. Qh6+ {[%clk 0:00:14.8]} 46... Kb5 {[%clk 0:00:30.4]} 47.
Rb8+ {[%clk 0:00:15.6]} 47... Ka5 {[%clk 0:00:30.4]} 48. Qf8 {[%clk 0:00:13.8]}
48... Nb3 {[%clk 0:00:25.4]} 49. Qd8+ {[%clk 0:00:13.4]} 49... Ka4 {[%clk
0:00:24.8]} 50. Qd7+ {[%clk 0:00:14.2]} 50... Ka3 {[%clk 0:00:22.6]} 51. Qxa7+
{[%clk 0:00:15.1]} 51... Kb2 {[%clk 0:00:23.7]} 52. Qg7+ {[%clk 0:00:15]} 52...
Kc2 {[%clk 0:00:23.5]} 53. Kf2 {[%clk 0:00:15.7]} 53... Nd4 {[%clk 0:00:23.3]}
54. Rc8 {[%clk 0:00:15.9]} 54... Nb3 {[%clk 0:00:24]} 55. Rxc5 {[%clk
0:00:15.6]} 55... Nxc5 {[%clk 0:00:24.6]} 56. Qc7 {[%clk 0:00:16.7]} 56... Nd3+
{[%clk 0:00:25]} 57. Ke3 {[%clk 0:00:17]} 57... Kc3 {[%clk 0:00:26.9]} 58. Qg7+
{[%clk 0:00:16.6]} 58... Kb3 {[%clk 0:00:28.2]} 59. Kd4 {[%clk 0:00:17.8]} 59...
Bb5 {[%clk 0:00:26.4]} 60. Qb7 {[%clk 0:00:18.2]} 60... Ka4 {[%clk 0:00:25.7]}
61. Kc3 {[%clk 0:00:18.2]} 61... Ka5 {[%clk 0:00:22.3]} 62. Kd4 {[%clk
0:00:18.5]} 62... Kb4 {[%clk 0:00:21.6]} 63. Qb8 {[%clk 0:00:18.5]} 63... Ka5
{[%clk 0:00:21.5]} 64. Qc7+ {[%clk 0:00:18.9]} 64... Kb4 {[%clk 0:00:22.6]} 65.
Qc3+ {[%clk 0:00:19.8]} 65... Ka4 {[%clk 0:00:22.7]} 66. Qa1+ {[%clk 0:00:20.6]}
66... Kb4 {[%clk 0:00:23.5]} 67. Qb1+ {[%clk 0:00:21.7]} 67... Ka4 {[%clk
0:00:23.2]} 68. Qh1 {[%clk 0:00:22.3]} 68... Kb3 {[%clk 0:00:22.7]} 69. Qh4
{[%clk 0:00:23.3]} 69... Kb4 {[%clk 0:00:22.7]} 70. Qh8 {[%clk 0:00:24.3]} 70...
Kb3 {[%clk 0:00:23.7]} 71. Qg7 {[%clk 0:00:26.2]} 71... Kb4 {[%clk 0:00:25]} 72.
Qh8 {[%clk 0:00:28.1]} 72... Kb3 {[%clk 0:00:26.5]} 73. Qf8 {[%clk 0:00:29.9]}
73... Ka4 {[%clk 0:00:26.7]} 74. Kc3 {[%clk 0:00:30.7]} 74... Ka5 {[%clk
0:00:28]} 75. Qa3+ {[%clk 0:00:30.4]} 75... Kb6 {[%clk 0:00:29.2]} 76. Kd4
{[%clk 0:00:30.9]} 76... Kc6 {[%clk 0:00:29.5]} 77. Qa7 {[%clk 0:00:31.2]} 77...
Kd6 {[%clk 0:00:20.5]} 78. Qb6+ {[%clk 0:00:31.7]} 78... Bc6 {[%clk 0:00:20]}
79. Kxd3 {[%clk 0:00:32.7]} 79... Kd7 {[%clk 0:00:21.9]} 80. Kd4 {[%clk
0:00:33.8]} 1-0